[Event "25th Troya Open 2017"]
[Site "Canakkale"]
[Date "2017.08.08"]
[Round "2.3"]
[White "Rahmanov, Shahriyar"]
[Black "Ozdilek, Hasan"]
[Result "1-0"]
[ECO "D02"]
[WhiteElo "2327"]
[BlackElo "1842"]
[Annotator "NA RC"]
[PlyCount "173"]
[EventCountry "TUR"]
[SourceTitle "playchess.com"]
[Source "ChessBase"]
[SourceQuality "1"]
[TimeControl "5400+30"]

1. d4 {[%emt 0:00:30]} Nf6 {[%emt 0:01:00]} 2. Nf3 {[%emt 0:00:30]} e6 {[%emt 0:00:30]} 3. Bf4 {[%emt 0:00:30]} d5 {[%emt 0:00:30]} 4. Nbd2 {[%emt 0:00:30]} Bd6 {[%emt 0:01:30]} 5. Bg3 {[%emt 0:06:30]} O-O {[%emt 0:00:30]} 6. e3 {[%emt 0:00:30]} b6 {[%emt 0:00:30]} 7. Bd3 {[%emt 0:00:30] LiveBook: 27 Games} Ba6 {[%emt 0:01:30] D02: 1 d4 d5 2 Nf3 sidelines, including 2...Nf6 3 g3 and 2...Nf6 3 Bf4} 8. Ne5 {[%emt 0:09:30]} Bxd3 {[%emt 0:01:30]} 9. cxd3 {[%emt 0:01:30]} Bxe5 $146 {[%emt 0:01:30]} ({Find the theoretical novelty and annotate with similar games:} 9... Nfd7 10. Qa4 Nxe5 11. dxe5 Be7 12. Qg4 Qd7 13. O-O Qb5 14. Qd4 c5 15. Qc3 Nc6 16. Rfd1 Rfd8 {½-½ (16) Miladinovic,I (2555)-Paunovic,T (2370) Kavala 1998}) 10. dxe5 {[%emt 0:05:30]} Nfd7 {[%emt 0:03:30]} 11. O-O {[%emt 0:16:30]} Nc6 {[%emt 0:08:30]} 12. Rc1 {[%emt 0:09:30]} Ne7 {[%emt 0:06:30]} 13. f4 {[%emt 0:12:30]} c5 {[%emt 0:05:30]} 14. Qg4 {[%emt 0:09:30]} Nf5 {[%emt 0:11:30]} 15. Bf2 {[%emt 0:00:30]} Qe8 {[%emt 0:08:30]} 16. e4 {[%emt 0:02:30]} dxe4 {[%emt 0:06:30]} 17. dxe4 {[%emt 0:00:00]} Nh6 {[%emt 0:00:30]} 18. Qe2 {[%emt 0:05:08]} f6 {[%emt 0:02:30]} 19. exf6 {[%emt 0:07:47]} Nxf6 {[%emt 0:02:30]} 20. Bh4 {[%emt 0:02:31]} Qh5 {[%emt 0:05:30]} 21. Qxh5 {[%emt 0:07:14]} (21. Nf3 $16) 21... Nxh5 {[%emt 0:00:30]} 22. g3 {[%emt 0:00:02]} Nf6 {[%emt 0:02:30]} 23. Rfd1 {[%emt 0:00:55]} Nf7 {[%emt 0:01:30]} 24. Bxf6 $11 {[%emt 0:00:12]} (24. Kf2 {[%emt 0:01:07]}) 24... gxf6 {[%emt 0:00:30]} 25. Kf2 {[%emt 0:00:30]} Rfd8 {[%emt 0:00:30]} 26. Ke3 {[%emt 0:00:30]} Rd7 {[%emt 0:00:30]} 27. Nf3 {[%emt 0:00:30]} Rad8 {[%emt 0:00:30]} 28. Rxd7 {[%emt 0:00:30]} Rxd7 {[%emt 0:00:30]} 29. g4 {[%emt 0:00:47]} h6 {[%emt 0:01:30]} 30. h4 {[%emt 0:00:17]} e5 {[%emt 0:01:30]} 31. Rg1 {[%emt 0:01:02]} exf4+ {[%emt 0:01:30]} 32. Kxf4 {[%emt 0:00:02]} Rd3 {[%emt 0:00:30]} 33. Rg2 {[%emt 0:00:37]} Kg7 {[%emt 0:01:30]} 34. b3 {[%emt 0:00:24]} Nd8 {[%emt 0:01:30]} 35. e5 {[%emt 0:00:48]} Ne6+ {[%emt 0:02:30]} 36. Ke4 {[%emt 0:00:08]} Rd1 {[%emt 0:00:00]} 37. Rd2 {[%emt 0:00:42]} Rxd2 {[%emt 0:01:00]} 38. Nxd2 {[%emt 0:00:01]} Nc7 {[%emt 0:00:30]} (38... h5 $11 {keeps the balance.}) 39. Kf5 {[%emt 0:00:35]} Nd5 $1 {[%emt 0:00:31]} 40. Ke6 {[%emt 0:01:06]} (40. g5 {[%emt 0:01:09]}) 40... Nf4+ {[%emt 0:00:29] [#]} 41. Kf5 {[%emt 0:00:01]} (41. Kd6 $1 $16 fxe5 42. Kxe5) 41... Nd5 {[%emt 0:00:00]} 42. Ke6 {[%emt 0:01:09]} Nf4+ {[%emt 0:00:00]} 43. Kf5 {[%emt 0:00:30]} Nd5 {[%emt 0:00:30]} 44. exf6+ $16 {[%emt 0:00:30]} Nxf6 {[%emt 0:00:30]} 45. g5 {[%emt 0:00:30]} (45. Ne4) 45... hxg5 {[%emt 0:00:30]} 46. hxg5 {[%emt 0:00:30]} Nd5 {[%emt 0:00:30]} 47. Ne4 {[%emt 0:00:30]} c4 {[%emt 0:00:30]} 48. bxc4 {[%emt 0:00:30]} Ne3+ {[%emt 0:00:30]} 49. Ke6 {[%emt 0:00:30]} Nxc4 {[%emt 0:00:30]} 50. Kd5 {[%emt 0:00:10]} Na5 {[%emt 0:01:30]} 51. Nd6 {[%emt 0:00:40]} a6 {[%emt 0:01:14]} 52. Nc4 {[%emt 0:00:28]} (52. Nc8 $5 {[%cal Rc8b6]} b5 53. Nd6 $14) 52... Nb7 {[%emt 0:01:36]} 53. Nxb6 {[%emt 0:00:23]} Kg6 {[%emt 0:00:10]} 54. Nc4 {[%emt 0:00:25]} Kxg5 {[%emt 0:00:52]} 55. Kc6 {[%emt 0:00:04]} Nd8+ {[%emt 0:00:00]} 56. Kb6 {[%emt 0:01:20]} Kf6 {[%emt 0:02:32]} 57. Kxa6 {[%emt 0:00:01]} Ke6 {[%emt 0:00:16]} 58. Kb6 {[%emt 0:00:05]} Kd7 {[%emt 0:01:39]} 59. Na5 {[%emt 0:01:07]} Ne6 {[%emt 0:00:36]} 60. a4 {[%emt 0:00:43]} Kc8 {[%emt 0:01:45]} 61. Nc6 {[%emt 0:00:27]} Nc7 {[%emt 0:00:02]} 62. Ne7+ {[%emt 0:00:26]} Kb8 {[%emt 0:00:06]} 63. a5 {[%emt 0:00:11]} Na8+ {[%emt 0:00:21]} 64. Kb5 {[%emt 0:00:21]} Nc7+ {[%emt 0:00:26]} 65. Kc6 {[%emt 0:00:08]} Na8 {[%emt 0:00:13]} 66. Nd5 {[%emt 0:00:11]} Ka7 {[%emt 0:00:27]} 67. Nb4 {[%emt 0:01:05]} Kb8 {[%emt 0:00:02]} 68. Nd5 {[%emt 0:01:32]} Ka7 {[%emt 0:00:05]} 69. Kb5 {[%emt 0:00:07]} Kb8 {[%emt 0:01:28]} 70. Nb4 {[%emt 0:00:28]} Nc7+ {[%emt 0:02:04]} 71. Kc6 {[%emt 0:00:30]} Na8 $11 {[%emt 0:00:00]} 72. Na6+ {[%emt 0:00:45]} Ka7 {[%emt 0:00:02]} 73. Nc5 {[%emt 0:00:00]} Kb8 {[%emt 0:00:00]} 74. Ne6 {[%emt 0:00:50]} Ka7 {[%emt 0:00:19]} 75. Kb5 {[%emt 0:00:09]} Kb7 {[%emt 0:00:31]} 76. Nd8+ {[%emt 0:00:37]} Ka7 {[%emt 0:00:55]} 77. Nc6+ {[%emt 0:00:11]} Kb7 {[%emt 0:00:28]} 78. a6+ {[%emt 0:00:00]} Kc7 {[%emt 0:00:00]} 79. Nd4 {[%emt 0:00:09]} Kd6 {[%emt 0:00:12]} 80. a7 {[%emt 0:00:30]} Kc7 {[%emt 0:00:19]} 81. Ka6 {[%emt 0:00:08]} Nb6 {[%emt 0:01:05]} 82. Nf5 {[%emt 0:00:39]} Na8 {[%emt 0:00:08]} 83. Ne7 {[%emt 0:00:08]} Kd7 {[%emt 0:01:26]} 84. Kb7 {[%emt 0:00:19]} Nc7 {[%emt 0:01:39]} 85. Nc8 {[%emt 0:01:09]} Kd8 {[%emt 0:00:42]} 86. Nb6 {[%emt 0:00:14]} Na8 {[%emt 0:01:42]} 87. Nxa8 {[%emt 0:00:06]} 1-0

[Event "25th Troya Open 2017"]
[Site "Canakkale"]
[Date "2017.08.08"]
[Round "2.5"]
[White "Demirbas, Emre"]
[Black "Yasin, Hur"]
[Result "0-1"]
[ECO "A30"]
[WhiteElo "1942"]
[BlackElo "1982"]
[Annotator "NA RC"]
[PlyCount "90"]
[EventCountry "TUR"]
[SourceTitle "playchess.com"]
[Source "ChessBase"]
[SourceQuality "1"]
[TimeControl "5400+30"]

{[%evp 8,84,13,15,0,0,-6,-13,-7,-47,-40,-45,-55,-47,-46,-43,-34,-74,-22,-63,-21,-67,-68,-81,-71,-101,-76,-174,-166,-212,-207,-239,-216,-216,-177,-232,-107,-173,-172,-147,-96,-123,-119,-172,-190,32767,32767,32767,32767,-252,-258,-276,-261,-272,-289,-287,-272,-356,-325,-390,-369,-431,-422,-435,-429,-523,32767,32767,32767,32767,32767,32767,32767,32767,32767,-29985,-29981,-2560,-2826]} 1. Nf3 {[%emt 0:00:30]} c5 {[%emt 0:01:00]} 2. c4 {[%emt 0:00:30]} Nf6 {[%emt 0:00:30]} 3. g3 {[%emt 0:02:30]} Nc6 {[%emt 0:02:30]} 4. Bg2 {[%emt 0:00:30]} d5 {[%emt 0:00:30]} 5. cxd5 {[%emt 0:03:30]} Nxd5 {[%emt 0:00:00]} 6. O-O {[%emt 0:00:30]} e5 {[%emt 0:00:00]} 7. Nc3 {[%emt 0:00:30]} Be6 {[%emt 0:06:30]} 8. d3 {[%emt 0:03:30]} Be7 {[%emt 0:00:30]} 9. Bd2 {[%emt 0:02:30]} O-O {[%emt 0:03:30] A30: Symmetrical English: Double Fianchetto and Hedgehog} 10. Rc1 {[%emt 0:01:30]} f6 {[%emt 0:04:30]} 11. a3 {[%emt 0:11:30]} Qd7 {[%emt 0:04:30] LiveBook: 3 Games} 12. Re1 {[%emt 0:02:30]} (12. Nxd5 Bxd5 13. Qa4 Rfd8 14. Rfe1 Kh8 15. Qh4 Rac8 16. b4 b6 17. Bh3 Be6 18. Bxe6 Qxe6 19. Rc4 Nd4 20. Nxd4 Rxd4 21. Rxd4 exd4 22. bxc5 Bxc5 {½-½ (38) Cordova,E (2637)-Zhou,J (2630) Atlantic City 2016}) 12... Rfd8 {[%emt 0:00:30]} 13. Qa4 $146 {[%emt 0:09:30]} ({Predecessor:} 13. Ne4 b6 14. Qa4 Rac8 15. e3 Kh8 16. Red1 Bg4 17. Nc3 {0-1 (28) Koelsch,M (2220)-Donchenko,A (2417) Germany 2013}) 13... Rac8 {[%emt 0:02:30]} 14. Red1 {[%emt 0:03:30]} a6 {[%emt 0:06:30]} 15. Ne4 {[%emt 0:06:30]} b5 {[%emt 0:11:30]} 16. Qc2 {[%emt 0:04:30]} g5 {[%emt 0:06:30]} 17. Qb1 {[%emt 0:04:30] [#]} ({Wrong is} 17. Nxc5 $2 Bxc5 18. e4 Nd4 $19) ({White should try} 17. e3 $15) 17... g4 $1 {[%emt 0:00:00]} 18. Ne1 {[%emt 0:01:30]} Nd4 {[%emt 0:00:00]} 19. Kf1 {[%emt 0:01:30]} Nb3 {[%emt 0:02:30]} 20. Rc2 {[%emt 0:02:30]} b4 {[%emt 0:06:30]} 21. Bh6 {[%emt 0:03:30]} (21. axb4 $142 Nxb4 22. Bxb4 cxb4 23. Nd2) 21... Nb6 {[%emt 0:05:30]} (21... Qe8 $19 {is more deadly.} 22. axb4 Nxb4) 22. Nd2 {[%emt 0:01:30]} (22. axb4 $17 cxb4 23. Rxc8 Rxc8 24. Nd2) 22... Nd4 {[%emt 0:01:30]} 23. Rcc1 {[%emt 0:00:30] [#]} Nf5 {[%emt 0:05:30]} (23... bxa3 $1 $19 24. bxa3 Rb8) 24. Be3 {[%emt 0:00:30]} Nd5 {[%emt 0:00:30]} 25. Nc4 {[%emt 0:00:30]} Ndxe3+ {[%emt 0:01:30]} 26. Nxe3 {[%emt 0:01:30]} Nxe3+ {[%emt 0:01:30]} 27. fxe3 {[%emt 0:00:30]} Bb3 {[%emt 0:00:30]} 28. Nc2 {[%emt 0:01:30]} (28. axb4 {was necessary.} Bxd1 29. Rxd1) 28... a5 {[%emt 0:00:30]} 29. Kg1 {[%emt 0:00:30]} f5 {[%emt 0:01:30]} 30. Rf1 {[%emt 0:01:30]} Bg5 {[%emt 0:00:30]} 31. Kh1 {[%emt 0:03:30]} h5 {[%emt 0:01:30]} 32. Na1 {[%emt 0:02:30]} (32. d4 $142) 32... Be6 {[%emt 0:00:30]} 33. axb4 {[%emt 0:02:30]} axb4 {[%emt 0:00:30]} 34. e4 {[%emt 0:02:30]} f4 {[%emt 0:01:30]} 35. gxf4 {[%emt 0:00:33]} Bxf4 {[%emt 0:01:30]} 36. Rce1 {[%emt 0:00:27]} Qe7 {[%emt 0:07:19]} 37. e3 {[%emt 0:04:32]} Bxh2 {[%emt 0:00:36]} 38. Kxh2 {[%emt 0:01:12]} Qh4+ {[%emt 0:00:30]} 39. Kg1 {[%emt 0:00:00]} g3 {[%emt 0:00:00]} 40. Rf5 {[%emt 0:01:08]} Rf8 {[%emt 0:00:23]} 41. Re2 {[%emt 0:02:43]} Bxf5 {[%emt 0:08:26]} 42. Qa2+ {[%emt 0:00:31] [#]} b3 $19 {[%emt 0:00:32]} 43. Qxb3+ {[%emt 0:02:14]} c4 {[%emt 0:00:08]} 44. Qb6 {[%emt 0:00:00]} cxd3 {[%emt 0:05:09]} 45. Re1 {[%emt 0:03:13]} Qh2+ {[%emt 0:00:25]} 0-1

[Event "25th Troya Open 2017"]
[Site "Canakkale"]
[Date "2017.08.08"]
[Round "2.6"]
[White "Onem, Cem"]
[Black "Karaahmetoglu, Ege"]
[Result "1/2-1/2"]
[ECO "E14"]
[WhiteElo "1819"]
[BlackElo "2086"]
[Annotator "NA RC"]
[PlyCount "87"]
[EventCountry "TUR"]
[SourceTitle "playchess.com"]
[Source "ChessBase"]
[SourceQuality "1"]
[TimeControl "5400+30"]

{[%evp 8,82,0,10,9,19,27,0,25,14,16,28,20,16,25,12,39,39,66,50,54,45,95,52,64,85,87,80,75,82,77,88,91,76,87,83,86,0,5,3,0,2,32767,32767,32767,32767,32767,32767,32767,32767,89,67,62,64,83,55,85,81,112,47,78,68,75,56,41,56,84,60,108,61,95,71,73,8,80,74,39]} 1. d4 {[%emt 0:00:30]} Nf6 {[%emt 0:01:00]} 2. c4 {[%emt 0:07:30]} e6 {[%emt 0:00:30]} 3. Nf3 {[%emt 0:00:30]} d5 {[%emt 0:00:30]} 4. e3 {[%emt 0:00:30]} Nbd7 {[%emt 0:01:30]} 5. Bd3 {[%emt 0:01:30]} Be7 {[%emt 0:01:30]} 6. O-O {[%emt 0:00:30]} O-O {[%emt 0:01:30]} 7. Nc3 {[%emt 0:00:30]} b6 {[%emt 0:00:30]} 8. cxd5 {[%emt 0:06:30]} exd5 {[%emt 0:00:30]} 9. b3 {[%emt 0:00:00]} Bb7 {[%emt 0:01:30]} (9... Bb4 $5 {[%cal Rb4c3]} 10. Bb2 Bb7 $14) 10. Bb2 {[%emt 0:00:00]} c5 {[%emt 0:01:30]} 11. Qe2 {[%emt 0:03:30] E14: Queen's Indian: Classical Variation (4 e3)} Ne4 {[%emt 0:05:30]} (11... Re8 12. Ba6 Qc8 13. Bxb7 Qxb7 14. Rfd1 Rac8 15. dxc5 bxc5 16. Rac1 Nb6 17. Qc2 {½-½ (44) Rozum,I (2602)-Bocharov,D (2581) Khanty-Mansiysk 2016}) 12. Rfd1 {[%emt 0:02:30] LiveBook: 4 Games} f5 {[%emt 0:08:30]} 13. Ba6 {[%emt 0:05:30]} Bxa6 {[%emt 0:06:30]} 14. Qxa6 {[%emt 0:00:00]} Ndf6 {[%emt 0:01:30]} 15. h3 $146 {[%emt 0:08:00]} ({Predecessor:} 15. dxc5 Bxc5 16. Nxd5 Ng4 17. Nf6+ gxf6 18. Rxd8 Raxd8 19. Qc4+ {1-0 (27) Brydon,D-Thurlow,K England 1986}) 15... f4 {[%emt 0:12:30]} 16. exf4 {[%emt 0:20:30]} Nxc3 {[%emt 0:00:30]} 17. Bxc3 {[%emt 0:00:00]} Ne4 {[%emt 0:00:00]} 18. Bd2 {[%emt 0:03:00]} Nxd2 {[%emt 0:01:00]} 19. Rxd2 {[%emt 0:00:30]} Rxf4 {[%emt 0:00:30]} 20. Rad1 {[%emt 0:03:30]} Qc7 {[%emt 0:00:00]} 21. dxc5 {[%emt 0:02:30]} Bxc5 {[%emt 0:00:00]} 22. Rxd5 {[%emt 0:00:30]} (22. Qf1 $16) 22... Rxf3 $1 {[%emt 0:00:30]} 23. Rxc5 $1 {[%emt 0:02:30]} Qxc5 {[%emt 0:00:30]} 24. gxf3 {[%emt 0:00:00]} Qg5+ {[%emt 0:00:30]} 25. Kf1 {[%emt 0:03:00]} Rf8 {[%emt 0:02:30]} 26. Qc4+ {[%emt 0:00:00]} Kh8 {[%emt 0:00:30]} 27. Qg4 {[%emt 0:02:00]} Qb5+ {[%emt 0:00:30]} 28. Kg2 {[%emt 0:00:30]} h5 {[%emt 0:11:30]} 29. Qg6 {[%emt 0:01:30]} Qf5 {[%emt 0:00:30]} 30. Qxf5 {[%emt 0:02:30]} Rxf5 {[%emt 0:00:00]} 31. Rd4 {[%emt 0:00:30]} Rf7 {[%emt 0:01:00]} 32. f4 {[%emt 0:00:30]} g6 {[%emt 0:01:30]} (32... Kh7 $14) 33. h4 {[%emt 0:01:30]} Kg7 {[%emt 0:00:30]} 34. Kf3 {[%emt 0:00:30]} Re7 {[%emt 0:00:30]} 35. Rd5 {[%emt 0:00:30]} Kf6 {[%emt 0:00:30]} 36. Rd8 {[%emt 0:07:22]} Re6 {[%emt 0:09:30]} 37. Rd7 {[%emt 0:01:01]} a6 {[%emt 0:00:00]} 38. Ra7 {[%emt 0:02:55]} b5 {[%emt 0:04:00]} 39. Rd7 {[%emt 0:01:55]} Rc6 {[%emt 0:10:20]} 40. Rd3 {[%emt 0:01:18]} (40. Kg3 $16) 40... Kf5 {[%emt 0:01:13]} (40... Ke6 $11) 41. Rd5+ {[%emt 0:00:24]} Ke6 $14 {[%emt 0:01:11]} 42. Rd3 {[%emt 0:02:42]} Kf5 {[%emt 0:00:02]} 43. Rd5+ {[%emt 0:00:26]} Ke6 {[%emt 0:00:04]} 44. Rd3 {[%emt 0:00:00]} 1/2-1/2

[Event "25th Troya Open 2017"]
[Site "Canakkale"]
[Date "2017.08.08"]
[Round "2.7"]
[White "Alaz, Ahmet Efekan"]
[Black "Akin, Yagiz Cinar"]
[Result "1-0"]
[ECO "D95"]
[WhiteElo "2048"]
[BlackElo "1933"]
[Annotator "NA RC"]
[PlyCount "49"]
[EventCountry "TUR"]
[SourceTitle "playchess.com"]
[Source "ChessBase"]
[SourceQuality "1"]
[TimeControl "5400+30"]

{[%evp 8,46,22,-5,23,13,20,16,23,22,44,22,66,46,48,24,133,112,153,136,156,77,32767,32767,32767,32767,86,60,32767,32767,32767,32767,32767,166,146,158,227,244,221,256,711]} 1. d4 {[%emt 0:00:30]} Nf6 {[%emt 0:01:00]} 2. c4 {[%emt 0:04:30]} g6 {[%emt 0:01:30]} 3. Nc3 {[%emt 0:00:30]} d5 {[%emt 0:00:30]} 4. e3 {[%emt 0:00:00]} Bg7 {[%emt 0:00:30]} 5. Qb3 {[%emt 0:01:00]} c6 {[%emt 0:02:30]} 6. Nf3 {[%emt 0:00:30]} O-O {[%emt 0:03:30]} 7. Be2 {[%emt 0:00:30]} dxc4 {[%emt 0:06:30]} 8. Bxc4 {[%emt 0:00:30] LiveBook: 28 Games} e6 {[%emt 0:03:30] D95: Grünfeld: 4 Nf3 Bg7 5 e3 0-0 6 Qb3} (8... b5 9. Be2 a5 10. O-O Bf5 11. Bd2 a4 12. Qd1 Nbd7 13. Nh4 Be6 14. e4 b4 15. Nxa4 Qa5 16. b3 Nxe4 {0-1 (48) Drozdovskij,Y (2614)-Motylev,A (2685) Khanty-Mansiysk 2011}) 9. e4 {[%emt 0:10:30]} b5 $146 {[%emt 0:11:30]} ({Predecessor:} 9... b6 10. O-O Ba6 11. Rd1 Qc8 12. e5 Nd5 13. Ne4 Bxc4 14. Qxc4 Qa6 15. Qc2 h6 16. a3 {1-0 (32) Sucic,M (1960)-Ruzic,S (1932) Sv Filip i Jakov 2008}) 10. Be2 $1 {[%emt 0:00:30]} a6 {[%emt 0:04:30]} 11. O-O {[%emt 0:03:30]} Ne8 {[%emt 0:11:30]} (11... c5 $14) 12. e5 {[%emt 0:09:30]} Nd7 {[%emt 0:05:30]} 13. Bg5 {[%emt 0:04:30]} Qc7 {[%emt 0:05:30]} 14. Be7 {[%emt 0:03:30]} ({Better is} 14. a4) 14... Nxe5 {[%emt 0:03:30]} 15. Bxf8 {[%emt 0:00:00]} Nxf3+ {[%emt 0:00:00]} 16. Bxf3 {[%emt 0:00:00]} Bxf8 {[%emt 0:00:00]} 17. Rac1 {[%emt 0:06:30]} Bb7 {[%emt 0:12:30]} 18. d5 {[%emt 0:05:30]} exd5 {[%emt 0:04:30]} 19. Nxd5 {[%emt 0:00:30]} Qa5 {[%emt 0:01:30]} 20. Ne3 {[%emt 0:01:30]} Rc8 {[%emt 0:03:06]} 21. Rfd1 {[%emt 0:02:30]} Nd6 {[%emt 0:01:45]} (21... Nf6 $16 {was necessary.} 22. Qc3 Qxc3 23. Rxc3 Rc7) 22. Ng4 {[%emt 0:00:30]} Kg7 {[%emt 0:06:45]} 23. Qe3 {[%emt 0:03:30]} Kg8 $18 {[%emt 0:03:54]} (23... Qd8 24. Qd2 h5) 24. Nf6+ {[%emt 0:06:30]} Kh8 {[%emt 0:00:11]} 25. Rxd6 {[%emt 0:00:30]} 1-0

[Event "25th Troya Open 2017"]
[Site "Canakkale"]
[Date "2017.08.08"]
[Round "2.9"]
[White "Pisirici, Necmettin Arda"]
[Black "Ozkurt, Kutay"]
[Result "1/2-1/2"]
[ECO "A07"]
[WhiteElo "1606"]
[BlackElo "1686"]
[Annotator "NA RC"]
[PlyCount "79"]
[EventCountry "TUR"]
[SourceTitle "playchess.com"]
[Source "ChessBase"]
[SourceQuality "1"]
[TimeControl "5400+30"]

1. Nf3 {[%emt 0:00:30]} d5 {[%emt 0:07:00]} 2. d3 {[%emt 0:01:30]} Nf6 {[%emt 0:01:30]} 3. g3 {[%emt 0:00:00]} Bg4 {[%emt 0:00:00]} 4. Nbd2 {[%emt 0:00:00]} Nc6 {[%emt 0:01:00]} 5. Bg2 {[%emt 0:01:30]} e5 {[%emt 0:02:30]} 6. O-O {[%emt 0:03:30]} Bd6 {[%emt 0:04:30]} 7. c4 {[%emt 0:11:30]} Rb8 {[%emt 0:14:30]} 8. cxd5 {[%emt 0:15:30]} Nxd5 {[%emt 0:01:30]} 9. Nc4 {[%emt 0:07:30]} Nf6 {[%emt 0:02:30]} 10. b3 {[%emt 0:17:30]} O-O {[%emt 0:01:30]} 11. Bb2 {[%emt 0:00:30]} Re8 {[%emt 0:00:00]} 12. Ng5 {[%emt 0:01:30]} Nd4 {[%emt 0:03:00]} 13. Bxd4 {[%emt 0:02:30]} exd4 {[%emt 0:00:30]} 14. Ne4 {[%emt 0:00:30]} Nxe4 {[%emt 0:00:30]} 15. Bxe4 {[%emt 0:00:00]} Bc5 {[%emt 0:00:30]} 16. Nd2 {[%emt 0:02:00]} Bb4 {[%emt 0:07:30]} 17. Bf3 {[%emt 0:07:30]} h5 {[%emt 0:00:30]} 18. Bxg4 {[%emt 0:01:30]} hxg4 {[%emt 0:00:30]} 19. Rc1 {[%emt 0:00:30]} g6 {[%emt 0:00:30]} 20. Rc4 {[%emt 0:00:30]} Ba5 {[%emt 0:01:30]} 21. b4 {[%emt 0:01:30]} Bb6 {[%emt 0:01:30]} 22. a4 {[%emt 0:01:30]} c6 {[%emt 0:00:30]} 23. Nb3 {[%emt 0:02:30]} a6 {[%emt 0:00:30]} 24. Re1 {[%emt 0:00:30]} Qd5 {[%emt 0:02:30]} 25. Qd2 {[%emt 0:00:30]} Kg7 {[%emt 0:03:30]} 26. Qf4 {[%emt 0:01:19]} Rh8 {[%emt 0:00:30]} 27. Qxg4 {[%emt 0:00:53]} Rxh2 {[%emt 0:01:30]} 28. Kxh2 {[%emt 0:04:25]} Rh8+ {[%emt 0:00:30]} 29. Qh3 {[%emt 0:00:07]} Rxh3+ {[%emt 0:00:30]} 30. Kxh3 {[%emt 0:00:06]} f5 {[%emt 0:00:30]} 31. Nc5 {[%emt 0:02:57]} f4 {[%emt 0:08:30]} 32. Kh2 {[%emt 0:03:20]} Bc7 {[%emt 0:00:30]} 33. Ne4 {[%emt 0:00:17]} b6 {[%emt 0:03:30]} 34. Kg2 {[%emt 0:01:53]} a5 {[%emt 0:07:30]} 35. bxa5 {[%emt 0:00:41]} Qxa5 {[%emt 0:00:00]} 36. Rec1 {[%emt 0:00:35]} c5 {[%emt 0:00:00]} 37. Kf3 {[%emt 0:00:59]} Qa8 {[%emt 0:00:30]} 38. Rg1 {[%emt 0:01:00]} Qf8 {[%emt 0:00:30]} 39. gxf4 {[%emt 0:01:10]} Bxf4 {[%emt 0:01:30]} 40. Kg2 {[%emt 0:00:17]} 1/2-1/2

[Event "25th Troya Open 2017"]
[Site "Canakkale"]
[Date "2017.08.08"]
[Round "2.10"]
[White "Sozbir, Levent Erinc"]
[Black "Celik, Akarsu Bengi"]
[Result "0-1"]
[ECO "D46"]
[WhiteElo "1553"]
[BlackElo "1445"]
[Annotator "NA RC"]
[PlyCount "98"]
[EventCountry "TUR"]
[SourceTitle "playchess.com"]
[Source "ChessBase"]
[SourceQuality "1"]
[TimeControl "5400+30"]

1. d4 {[%emt 0:05:30]} d5 {[%emt 0:01:00]} 2. c4 {[%emt 0:00:00]} e6 {[%emt 0:01:30]} 3. e3 {[%emt 0:00:00]} Nf6 {[%emt 0:00:30]} 4. Nc3 {[%emt 0:00:30]} c6 {[%emt 0:02:30]} 5. Nf3 {[%emt 0:00:30]} Be7 {[%emt 0:04:30]} 6. Bd3 {[%emt 0:00:30]} O-O {[%emt 0:00:30]} 7. O-O {[%emt 0:00:30]} b6 {[%emt 0:04:30]} 8. e4 {[%emt 0:01:30]} dxe4 {[%emt 0:05:30]} 9. Nxe4 {[%emt 0:00:00]} Nbd7 {[%emt 0:01:30]} 10. Qc2 {[%emt 0:02:00]} Bb7 {[%emt 0:07:30]} 11. Bf4 {[%emt 0:14:30]} Nxe4 {[%emt 0:10:30]} 12. Bxe4 {[%emt 0:01:30]} Nf6 {[%emt 0:01:30]} 13. Rfd1 {[%emt 0:06:30]} Nxe4 {[%emt 0:10:30]} 14. Qxe4 {[%emt 0:00:30]} Bf6 {[%emt 0:03:30]} 15. Be5 {[%emt 0:02:30]} Bxe5 {[%emt 0:04:30]} 16. Qxe5 {[%emt 0:01:30]} Re8 {[%emt 0:01:30]} 17. Rac1 {[%emt 0:09:30]} Qe7 {[%emt 0:02:30]} 18. Nd2 {[%emt 0:07:30]} Rad8 {[%emt 0:04:30]} 19. Qe3 {[%emt 0:03:30]} Rd7 {[%emt 0:02:30]} 20. Nb3 {[%emt 0:10:30]} Red8 {[%emt 0:02:30]} 21. Rd2 {[%emt 0:00:30]} Qf6 {[%emt 0:03:30]} 22. Rcd1 {[%emt 0:00:30]} h6 {[%emt 0:01:30]} 23. f3 {[%emt 0:08:30]} Ba6 {[%emt 0:03:49]} 24. Qc3 {[%emt 0:07:24]} c5 {[%emt 0:05:03]} 25. dxc5 {[%emt 0:00:50]} Qxc3 {[%emt 0:00:07]} 26. bxc3 {[%emt 0:00:00]} Rxd2 {[%emt 0:00:12]} 27. Rxd2 {[%emt 0:00:08]} Rxd2 {[%emt 0:00:03]} 28. Nxd2 {[%emt 0:00:00]} bxc5 {[%emt 0:00:15]} 29. Kf2 {[%emt 0:00:26]} Kf8 {[%emt 0:00:17]} 30. Ke3 {[%emt 0:03:35]} Ke7 {[%emt 0:00:15]} 31. Kd3 {[%emt 0:03:39]} Kd6 {[%emt 0:00:28]} 32. f4 {[%emt 0:00:15]} Bb7 {[%emt 0:03:26]} 33. g3 {[%emt 0:00:48]} f5 {[%emt 0:01:00]} 34. Nf1 {[%emt 0:05:31]} a5 {[%emt 0:03:04]} 35. Ne3 {[%emt 0:02:25]} Be4+ {[%emt 0:01:49]} 36. Ke2 {[%emt 0:00:44]} g5 {[%emt 0:01:19]} 37. h4 {[%emt 0:01:56]} gxf4 {[%emt 0:02:14]} 38. gxf4 {[%emt 0:00:01]} e5 {[%emt 0:00:06]} 39. fxe5+ {[%emt 0:00:58]} Kxe5 {[%emt 0:00:01]} 40. a3 {[%emt 0:00:04]} h5 {[%emt 0:00:30]} 41. Kf2 {[%emt 0:02:10]} f4 {[%emt 0:01:31]} 42. Nf1 {[%emt 0:00:31]} Bd3 {[%emt 0:01:47]} 43. Nd2 {[%emt 0:00:04]} a4 {[%emt 0:00:06]} 44. Kg2 {[%emt 0:01:24]} Kf5 {[%emt 0:00:59]} 45. Kh3 {[%emt 0:00:27]} Be2 {[%emt 0:01:07]} 46. Kh2 {[%emt 0:00:17]} Bd3 {[%emt 0:02:41]} 47. Kh3 {[%emt 0:00:12]} Be2 {[%emt 0:00:16]} 48. Kg2 {[%emt 0:00:29]} Kg4 {[%emt 0:00:23]} 49. Ne4 {[%emt 0:00:30]} Bf3+ {[%emt 0:00:00]} 0-1